bitfinex/quotes_ETHUSD_20250220
["timestamp","ask_amount","ask_price","bid_price","bid_amount"]
[1740060126607,0.8074,2753.2,2752.9,4.385267]
[1740060126966,4.38689,2753.4,2752.9,4.385267]
[1740060127279,0.755,2753.4,2752.9,4.385257]
[1740060127606,0.755,2753.4,2752.9,5.212057]
[1740060127908,4.38694,2753.4,2753.0,0.5475057]
[1740060128061,4.38694,2753.4,2753.0,3.63239]
[1740060128679,4.38694,2753.4,2752.9,0.8268]
[1740060128885,4.38694,2753.4,2752.9,4.45933]
[1740060129084,3.632,2753.3,2752.9,0.8268]
[1740060129288,3.63219,2753.2,2752.8,0.263]
[1740060129521,3.63219,2753.2,2752.9,0.263]
[1740060131318,0.782,2753.1,2752.9,0.263]
[1740060133682,0.8332,2753.3,2752.9,0.263]
[1740060134019,0.005,2753.4,2752.9,5.047271]
[1740060134214,0.005,2753.4,2753.0,3.63235]
[1740060135478,0.005,2753.4,2752.9,1.414771]
[1740060135677,0.005,2753.4,2753.0,3.63238]
[1740060136893,0.005,2753.4,2753.1,3.63217]
[1740060137120,0.005,2753.4,2753.3,3.632]
[1740060137521,0.005,2753.4,2753.2,3.63213]
[1740060137723,0.005,2753.4,2753.2,3.63205]
[1740060138038,0.005,2753.4,2753.3,3.632]
[1740060138221,0.005,2753.4,2753.3,3.66831608]
[1740060138402,0.005,2753.4,2753.3,4.03514769]
[1740060138605,0.005,2753.4,2753.3,4.81573161]
[1740060139312,0.005,2753.4,2753.3,7.81573161]
[1740060139904,0.005,2753.4,2753.3,11.22648076]
[1740060141328,1e-05,2753.4,2753.3,11.77648076]
[1740060144212,1e-05,2753.4,2753.3,17.09648076]
[1740060144398,1e-05,2753.4,2753.3,20.60722991]
[1740060144604,1e-05,2753.4,2753.3,20.67364371]
[1740060145223,1e-05,2753.4,2753.3,29.44364371]
[1740060145759,1e-05,2753.4,2753.3,34.08213269]
[1740060152460,1e-05,2753.4,2753.3,30.67138354]
[1740060152643,0.1498199,2754.0,2753.3,26.45238354]
[1740060152843,0.1498199,2754.0,2753.9,3.63121]
[1740060153141,0.1498199,2754.0,2753.9,6.63121]
[1740060153917,0.1498199,2754.0,2753.9,11.36520705]
[1740060154156,0.1498199,2754.0,2753.9,7.73399705]
[1740060154599,0.1498199,2754.0,2753.9,11.36520705]
[1740060154724,0.9740199,2754.0,2753.9,4.99699705]
[1740060155768,0.9740199,2754.0,2753.9,8.62820705]
[1740060156320,0.1498199,2754.0,2753.9,9.85417376]
[1740060156836,0.9308199,2754.0,2753.9,6.22296376]
[1740060157169,0.9308199,2754.0,2753.9,4.99699705]
[1740060157928,0.9308199,2754.0,2753.9,8.62820705]
[1740060159610,0.1498199,2754.0,2753.9,8.62820705]
[1740060159784,0.1498199,2754.0,2753.9,15.0389562]
[1740060159939,9.9e-06,2754.0,2753.9,30.4363562]
[1740060160139,9.9e-06,2754.0,2753.9,33.84312482]
[1740060162870,9.9e-06,2754.0,2753.9,34.56435855]
[1740060172244,9.9e-06,2754.0,2753.9,34.01435855]
[1740060172546,9.9e-06,2754.0,2753.9,34.56435855]
[1740060175962,0.8228,2754.7,2754.6,6.63029]
[1740060176267,0.8228,2754.7,2754.6,12.02857602]
[1740060177624,0.7956,2755.2,2754.8,3.62994]
[1740060177823,0.7956,2755.2,2754.8,3.89294]
[1740060178051,0.7956,2755.2,2754.8,7.90210202]
[1740060179925,0.7956,2755.2,2754.8,4.27216202]
[1740060180130,0.7984,2755.1,2754.8,4.27216202]
[1740060180330,0.7984,2755.0,2754.8,4.00916202]
[1740060180554,4.42829,2754.9,2754.8,4.00916202]
[1740060183437,0.7984,2754.9,2754.8,4.00916202]
[1740060183971,4.42829,2754.9,2754.8,4.00916202]
[1740060185848,0.7984,2754.9,2754.8,4.00916202]
[1740060186294,4.42829,2754.9,2754.8,4.00916202]
[1740060186772,0.7984,2754.9,2754.8,4.00916202]
[1740060189771,4.42829,2754.9,2754.8,4.00916202]
[1740060189976,0.7984,2754.9,2754.8,4.00916202]
[1740060191453,4.42829,2754.9,2754.8,4.00916202]
[1740060191769,0.7984,2754.9,2754.8,4.00916202]
[1740060192158,4.42829,2754.9,2754.8,4.00916202]
[1740060192967,5.234097,2754.9,2754.8,4.00916202]
[1740060193889,5.139097,2754.9,2754.8,4.00916202]
[1740060196091,13.379097,2754.9,2754.8,4.00916202]
[1740060199594,14.08816113,2754.9,2754.8,4.00916202]
[1740060202902,14.08816113,2754.9,2754.8,2.02e-06]
[1740060203257,4.41979,2754.1,2753.7,0.263]
[1740060204526,3.63074,2754.3,2753.7,0.263]
[1740060204687,3.63074,2754.3,2753.8,4.45368]
[1740060205190,3.63083,2754.2,2753.8,4.45368]
[1740060205388,3.63074,2754.3,2753.8,4.45368]
[1740060205589,0.8147,2754.4,2753.8,4.45368]
[1740060205789,3.63075,2754.3,2753.8,4.45368]
[1740060206039,3.63075,2754.3,2753.9,3.63121]
[1740060206250,4.44531,2754.4,2753.9,3.63121]
[1740060206586,3.63069,2754.3,2753.9,3.63121]
[1740060206796,0.8147,2754.4,2753.9,3.63121]
[1740060207012,4.44532,2754.4,2753.9,3.63121]
[1740060207240,3.63075,2754.3,2753.9,0.9182812]
[1740060207631,3.63075,2754.3,2753.9,4.5494912]
[1740060207945,4.44527,2754.4,2753.9,4.5494912]
[1740060208149,0.8147,2754.4,2754.1,3.63087]
[1740060208442,0.796,2754.7,2754.2,0.763]
[1740060208646,4.42624,2754.7,2754.2,4.39375]
[1740060208789,0.796,2754.7,2754.2,0.763]
[1740060208995,3.63034,2754.6,2754.2,0.763]
[1740060210946,3.63032,2754.6,2754.2,0.763]
[1740060211108,3.63032,2754.6,2754.2,1.202392]
[1740060215626,4.42621,2754.7,2754.2,4.833152]
[1740060216046,3.63002,2754.8,2754.3,3.63067]
[1740060216268,3.63002,2754.8,2754.3,3.63061]
[1740060216457,12.28018915,2755.3,2754.2,1.202392]
[1740060216458,0.7852,2755.1,2754.6,3.63025]
[1740060216774,3.62976,2755.0,2754.6,0.8127]
[1740060217767,3.62941,2755.3,2755.0,0.781]
[1740060218071,0.807,2755.6,2755.0,0.781]
[1740060218242,3.62934,2755.4,2755.0,0.781]
[1740060218441,5.24,2755.8,2755.0,0.781]
[1740060218628,5.24,2755.8,2755.2,3.62943]
[1740060218629,8.86879,2755.8,2755.2,3.62943]
[1740060218824,4.515789,2755.7,2755.1,3.62954]
[1740060219086,0.886879,2755.7,2755.1,3.62954]
[1740060219241,8.86821,2756.2,2755.2,0.86149427]
[1740060219443,8.86821,2756.2,2755.6,3.62895]
[1740060219444,3.62831,2756.1,2755.6,3.62895]
[1740060219774,3.62847,2756.0,2755.3,3.89229]
[1740060219945,3.62834,2756.1,2755.5,3.62898]
[1740060220655,3.62847,2756.0,2755.4,7.25838]
[1740060220856,3.62834,2756.1,2755.5,3.62908]
[1740060221065,7.25677,2756.1,2755.5,3.62908]
[1740060221240,7.25677,2756.1,2755.3,3.89229]
[1740060221241,5.24,2756.6,2755.8,3.62859]
[1740060221437,5.24,2756.6,2755.6,0.7586]
[1740060221438,3.62786,2756.5,2755.9,7.25696]
[1740060221643,3.62786,2756.5,2755.9,3.62846]
[1740060221867,7.25573,2756.5,2755.9,3.62846]
[1740060222048,3.62786,2756.5,2755.9,3.62846]
[1740060222406,3.62786,2756.5,2755.6,4.16934915]
[1740060222407,3.62819,2756.2,2755.6,0.7586]
[1740060222611,3.0,2756.4,2755.4,0.7939]
[1740060222767,3.0,2756.4,2755.3,0.263]
[1740060222768,3.62913,2755.5,2755.3,0.263]
[1740060222973,3.62913,2755.5,2755.1,0.265]
[1740060222974,3.62937,2755.3,2755.1,0.265]
[1740060223388,8.65074915,2755.9,2755.1,0.265]
[1740060223585,3.62891,2755.7,2755.1,3.89453]
[1740060223786,8.86866,2755.9,2755.2,0.7649]
[1740060223974,9.835306,2755.9,2755.3,3.62929]
[1740060224194,9.835306,2755.9,2755.4,3.62923]
[1740060224400,9.835306,2755.9,2755.3,3.62929]
[1740060224401,5.24,2755.9,2755.2,0.7649]
[1740060224599,5.24,2755.9,2755.5,3.62899]
[1740060225515,5.24,2755.9,2755.5,3.62898]
[1740060225714,5.24,2755.9,2755.6,3.62896]
[1740060225900,3.62794,2756.4,2755.3,5.32]
[1740060226116,3.62807,2756.3,2755.7,3.62874]
[1740060226273,3.62826,2756.2,2755.4,1.2869]
[1740060226478,3.62826,2756.2,2755.6,3.62885]
[1740060226693,3.62826,2756.2,2755.7,3.6288]
[1740060228320,3.62826,2756.2,2755.5,3.62899]
[1740060228624,3.62834,2756.1,2755.6,4.120539]
[1740060228815,3.62834,2756.1,2755.1,7.30534915]
[1740060228816,4.43819,2755.6,2754.8,0.7977]
[1740060228979,3.62879,2755.8,2755.3,3.62927]
[1740060229185,3.62871,2755.8,2755.4,0.7977]
[1740060229520,3.62871,2755.8,2755.3,3.62936]
[1740060229678,3.62871,2755.8,2755.2,4.42713]
[1740060229934,3.62871,2755.8,2755.2,5.2533765]
[1740060230275,3.62885,2755.7,2755.3,3.62935]
[1740060230470,4.4379,2755.9,2755.3,3.62935]
[1740060230771,3.62872,2755.8,2755.3,3.6293]
[1740060230971,3.62872,2755.8,2755.3,3.66557989]
[1740060231120,0.8092,2755.9,2755.4,3.62914]
[1740060231327,3.62847,2756.0,2755.5,3.62909]
[1740060231541,0.8176,2756.1,2755.2,0.7977]
[1740060231841,3.62826,2756.2,2755.4,3.62916]
[1740060232041,3.62826,2756.2,2755.4,4.071846]
[1740060232274,8.08418,2756.3,2755.4,0.442686]
[1740060232437,0.8279,2756.3,2755.5,0.759]
[1740060232762,3.62818,2756.2,2755.5,0.759]
[1740060232962,3.62818,2756.2,2755.6,0.438823]
[1740060233162,3.62831,2756.1,2755.7,0.265]
[1740060234187,4.45595,2756.3,2755.7,0.265]
[1740060234389,3.62818,2756.2,2755.7,0.265]
[1740060234843,0.8279,2756.3,2755.7,0.265]
[1740060234844,4.45596,2756.3,2755.7,0.265]
[1740060235261,3.62766,2756.6,2755.8,3.62864]
[1740060235490,0.1498199,2756.7,2756.1,4.41241]
[1740060235692,0.1498199,2756.7,2756.6,7.41175]
[1740060235901,0.1498199,2756.7,2756.6,7.67775]
[1740060236080,0.1498199,2756.7,2756.6,8.808296]
[1740060236443,0.8328,2757.8,2756.9,0.8243]
[1740060236674,4.40169,2758.1,2757.2,3.0]
[1740060236882,4.40169,2758.1,2757.2,6.62685]
[1740060237196,3.62565,2758.2,2757.4,3.0]
[1740060237336,3.6256,2758.2,2757.3,8.81742092]
[1740060237698,3.41074915,2758.2,2757.3,2.19075092]
[1740060237852,0.005,2758.4,2756.5,1.38024371]
[1740060237853,3.62655,2757.5,2756.9,6.0881]
[1740060238038,3.62661,2757.4,2757.0,0.266]
[1740060238240,3.62678,2757.3,2756.9,5.32]
[1740060238441,0.70375292,2757.3,2756.7,0.266]
[1740060238639,0.8045,2757.4,2756.7,0.266]
[1740060238938,3.62658,2757.5,2756.8,0.7891]
[1740060239139,3.62641,2757.6,2756.8,0.7891]
[1740060239338,3.62707,2757.1,2756.7,0.266]
[1740060240379,3.62653,2757.5,2756.7,0.50731437]
[1740060240563,5.24,2757.6,2756.7,0.50731437]
[1740060240877,3.62624,2757.7,2756.9,0.55]
[1740060241219,3.62594,2757.9,2756.9,5.87]
[1740060241509,3.62594,2757.9,2757.0,4.652148]
[1740060241697,3.6261,2757.8,2757.1,0.7937]
[1740060242099,3.62594,2757.9,2757.1,0.7937]
[1740060242100,3.62623,2757.7,2757.1,0.7937]
[1740060242299,7.25255,2757.7,2757.1,0.7937]
[1740060242507,3.62655,2757.5,2757.1,0.7937]
[1740060242670,3.62662,2757.4,2756.9,5.32]
[1740060242866,3.6268,2757.3,2756.9,5.32]
[1740060243085,3.62702,2757.1,2756.9,5.32]
[1740060243369,3.62673,2757.3,2756.7,1.68234143]
[1740060243569,3.62673,2757.3,2756.7,1.92744557]
[1740060243983,3.62695,2757.2,2756.7,1.92744557]
[1740060244419,3.62673,2757.3,2756.7,1.92744557]
[1740060244710,3.62653,2757.5,2756.7,1.92744557]
[1740060245073,3.62674,2757.3,2756.7,1.92744557]
[1740060245476,1.21194491,2757.6,2756.7,1.92744557]
[1740060245819,3.6266,2757.4,2756.7,1.92744557]
[1740060246017,3.6266,2757.4,2756.8,0.03626855]
[1740060246227,3.62616,2757.8,2756.9,0.7659]
[1740060246522,3.62602,2757.9,2757.0,3.0]
[1740060246674,3.62602,2757.9,2757.0,6.62708]
[1740060246880,5.24,2758.0,2757.3,3.62672]
[1740060247077,3.62575,2758.1,2757.5,0.7706]
[1740060247274,7.25151,2758.1,2757.5,1.778332]
[1740060247497,3.62582,2758.0,2757.5,1.778332]
[1740060247698,3.62569,2758.1,2757.5,1.778332]
[1740060248276,0.005,2758.4,2757.5,1.778332]
[1740060248507,3.63033,2758.4,2757.6,3.62634]
[1740060248671,3.63033,2758.4,2757.7,0.5404672]
[1740060248877,3.62563,2758.2,2757.5,1.778332]
[1740060249272,3.6261,2757.8,2757.5,1.0386]
[1740060249615,3.62641,2757.6,2757.5,0.268]
[1740060249799,7.25254,2757.7,2757.5,0.268]
[1740060250000,3.62622,2757.7,2757.5,0.268]
[1740060250203,3.62622,2757.7,2757.2,6.0872]
[1740060250204,3.62634,2757.6,2756.9,6.1377]
[1740060250405,1.117122,2757.7,2756.9,0.8177]
[1740060250627,7.25341,2757.4,2756.9,1.0867]
[1740060250827,3.62674,2757.3,2756.9,1.0867]
[1740060251028,3.62687,2757.2,2756.9,1.0867]
[1740060251525,3.62669,2757.4,2756.9,1.0867]
[1740060252211,3.62668,2757.4,2756.9,1.58679919]
[1740060252425,3.62643,2757.6,2756.9,1.62306782]
[1740060252578,3.62655,2757.5,2756.9,1.62306782]
[1740060252781,3.6267,2757.4,2756.9,1.58679919]
[1740060252976,3.62655,2757.5,2756.9,1.0867]
[1740060253524,3.6264,2757.6,2756.9,1.0867]
[1740060253697,3.62654,2757.5,2756.9,1.0867]
[1740060254024,3.62662,2757.4,2756.9,2.28766608]
[1740060254228,3.62654,2757.5,2756.9,2.28766608]
[1740060254398,3.62636,2757.6,2756.9,2.28766608]
[1740060254728,3.62649,2757.5,2756.9,2.28766608]
[1740060254885,3.62662,2757.4,2756.9,2.28766608]
[1740060255086,3.62649,2757.5,2757.0,0.28467955]
[1740060255397,3.62649,2757.5,2756.9,2.28766608]
[1740060257213,3.62639,2757.6,2757.0,0.95783619]
[1740060257425,3.62658,2757.5,2757.0,0.95783619]
[1740060257737,3.62658,2757.5,2756.9,2.28666608]
[1740060257943,7.25257,2757.7,2756.9,5.91390608]
[1740060258239,3.6264,2757.6,2756.9,2.28666608]
[1740060258391,3.6264,2757.6,2756.9,5.91391608]
[1740060258785,3.62604,2757.9,2757.2,3.62679]
[1740060258981,3.62594,2757.9,2757.2,3.62686]
[1740060259318,8.86562,2758.2,2757.5,0.7691]
[1740060259621,3.62562,2758.2,2757.5,4.3955]
[1740060259785,3.6257,2758.1,2757.5,1.571315]
[1740060259983,8.07782,2758.3,2757.5,1.571315]
[1740060260185,0.005,2758.4,2757.6,3.66250896]
[1740060260408,7.25577,2758.4,2757.7,1.0484]
[1740060260615,3.62543,2758.3,2757.7,1.0484]
[1740060260827,7.25577,2758.4,2757.7,1.0484]
[1740060261047,3.63037,2758.4,2757.7,4.67457]
[1740060261327,0.005,2758.4,2758.2,0.7615]
[1740060261487,0.005,2758.4,2758.3,0.0362526]
[1740060261694,0.005,2758.4,2758.3,12.18518037]
[1740060261887,0.005,2758.6,2758.5,4.31645]
[1740060262087,0.005,2759.7,2759.0,0.6913]
[1740060262411,0.005,2759.7,2759.0,6.0113]
[1740060262612,0.005,2759.7,2759.0,9.63576]
[1740060262808,0.005,2759.7,2759.3,3.6241]
[1740060263003,0.005,2759.7,2759.3,7.6942]
[1740060263205,0.005,2759.7,2759.3,9.713044]
[1740060263408,0.005,2759.7,2759.3,10.263044]
[1740060263839,0.005,2759.7,2759.3,10.59692624]
[1740060264013,0.005,2759.7,2759.3,6.15282624]
[1740060264217,3.62867,2759.7,2759.3,1.13398224]
[1740060264403,3.62393,2759.5,2759.3,0.33388224]
[1740060264604,3.62861,2759.7,2759.3,0.33388224]
[1740060264826,0.005,2759.7,2759.3,0.33388224]
[1740060265137,3.62389,2759.5,2759.1,0.27]
[1740060265502,3.7737999,2759.4,2759.1,0.27]
[1740060265936,3.62413,2759.3,2759.1,0.27]
[1740060266638,3.62423,2759.2,2759.1,0.27]
[1740060266841,3.62413,2759.3,2758.6,5.751645]
[1740060267002,3.62413,2759.3,2758.7,0.68512336]
[1740060267407,3.6248,2758.8,2758.6,5.751645]
[1740060267612,4.40219,2759.2,2758.4,2.19979562]
[1740060267902,3.62515,2758.5,2758.4,2.19979562]
[1740060268107,3.62468,2758.9,2758.4,2.44677518]
[1740060268528,3.62476,2758.9,2758.4,2.44677518]
[1740060268841,9.0138299,2759.4,2758.5,0.03624867]
[1740060268842,5.3898199,2759.4,2758.5,0.03624867]
[1740060269042,3.6245,2759.0,2758.4,2.44677518]
[1740060269978,7.2491,2759.0,2758.4,2.44677518]
[1740060270166,3.6248,2758.8,2758.5,0.24467752]
[1740060270451,3.62411,2759.3,2758.5,3.86971752]
[1740060270611,3.62411,2759.3,2758.5,0.28092424]
[1740060270811,5.3898199,2759.4,2758.7,3.62485]
[1740060271148,3.6241,2759.3,2758.8,0.7897]
[1740060271317,0.1498199,2759.4,2758.8,0.7897]
[1740060272244,3.62444,2759.1,2758.8,0.7897]
[1740060272431,0.1498199,2759.4,2758.9,4.28450504]
[1740060272636,0.1498199,2759.4,2759.3,6.6241]
[1740060272950,0.1498199,2759.4,2759.3,12.7577]
[1740060273246,0.1498199,2759.4,2759.3,13.3077]
[1740060273924,0.1498199,2759.4,2759.3,13.63995618]
[1740060274125,0.1498199,2759.4,2759.3,15.79118884]
[1740060274353,0.1498199,2759.4,2759.3,16.06722806]
[1740060274354,9.9e-06,2759.4,2759.3,16.06722806]
[1740060274538,9.9e-06,2759.4,2759.3,16.13349745]
[1740060274742,9.9e-06,2759.4,2759.3,25.08438012]
[1740060274929,9.9e-06,2759.4,2759.3,25.17449745]
[1740060276275,0.005,2759.7,2759.6,3.62371]
[1740060276477,3.62237,2760.7,2760.1,3.0]
[1740060276766,3.62206,2760.9,2760.2,0.272]
[1740060277062,3.62256,2760.5,2760.2,0.272]
[1740060277218,0.362256,2760.5,2759.7,6.0063]
[1740060277418,3.62295,2760.2,2759.8,0.272]
[1740060277615,3.62272,2760.4,2759.8,3.272]
[1740060278063,7.2455,2760.4,2759.8,3.272]
[1740060278272,5.04796037,2760.7,2759.6,0.06626219]
[1740060278421,5.04796037,2760.7,2759.3,0.7987]
[1740060278422,3.62339,2759.9,2759.3,0.7987]
[1740060278622,3.62305,2760.2,2759.3,6.1187]
[1740060278913,3.62303,2760.2,2759.5,3.0]
[1740060279060,0.50479604,2760.6,2759.6,0.3273]
[1740060279371,3.62301,2760.2,2759.6,5.6473]
[1740060279534,3.62327,2760.0,2759.6,5.5973]
[1740060279738,3.62345,2759.8,2759.6,5.32]
[1740060279933,3.62358,2759.7,2759.6,5.32]
[1740060280149,0.8005,2760.7,2759.6,5.32]
[1740060280355,0.8005,2760.7,2759.6,8.94363]
[1740060280356,3.62261,2760.5,2759.6,8.94363]
[1740060280526,3.62281,2760.3,2759.6,7.32888504]
[1740060280725,3.62281,2760.3,2759.8,0.8277]
[1740060280726,3.62282,2760.3,2759.8,0.8277]
[1740060281659,3.62255,2760.5,2759.8,0.8277]
[1740060281660,7.24517,2760.5,2759.8,0.8277]
[1740060281839,3.62255,2760.5,2759.8,0.8277]
[1740060282036,3.62255,2760.5,2759.8,4.45112]
[1740060282224,3.62255,2760.5,2759.8,0.8277]
[1740060282947,3.62255,2760.5,2759.8,2.0057075]
[1740060283340,3.62213,2760.9,2760.0,3.62306]
[1740060283656,9.62054,2761.0,2760.1,0.03622405]
[1740060283857,3.6226,2760.5,2760.2,0.274]
[1740060285950,0.7586,2761.0,2760.2,0.274]
[1740060286152,0.7586,2761.0,2759.9,5.32]
[1740060286153,3.62279,2760.3,2759.9,5.32]
[1740060286357,3.62313,2760.1,2759.9,5.32]
[1740060286558,3.62318,2760.0,2759.9,5.32]
[1740060288143,3.62424,2759.2,2758.9,0.274]
[1740060288372,0.724631,2759.9,2759.1,3.6243]
[1740060288577,3.62359,2759.7,2759.2,0.8305]
[1740060289170,3.6234,2759.9,2759.2,4.45467]
[1740060289375,3.62333,2759.9,2759.2,1.835367]
[1740060289557,3.62333,2759.9,2759.2,5.459527]
[1740060289761,4.38704,2760.1,2759.3,0.03623554]
[1740060290074,3.62359,2759.7,2759.2,1.835367]
[1740060290374,3.62359,2759.7,2759.2,0.8305]
[1740060290668,3.62366,2759.7,2759.2,0.8305]
[1740060291241,3.62352,2759.8,2759.2,0.8305]
[1740060291558,3.62337,2759.9,2759.2,0.8305]
[1740060291733,3.62337,2759.9,2759.3,0.977475]
[1740060291930,3.62337,2759.9,2759.4,0.274]
[1740060292271,7.24679,2759.9,2759.4,0.274]
[1740060292481,3.62378,2759.6,2759.4,0.274]
[1740060292780,3.62384,2759.5,2759.4,0.274]
[1740060293084,3.62378,2759.6,2759.4,0.274]
[1740060293442,0.7639,2760.1,2759.2,0.8305]
[1740060293647,3.62367,2759.7,2759.2,0.8305]
[1740060294169,3.62339,2759.9,2759.2,5.27416181]
[1740060294388,3.62347,2759.8,2759.2,5.27416181]
[1740060294679,3.62312,2760.1,2759.3,3.62409]
[1740060294835,3.62328,2760.0,2759.3,3.62409]
[1740060295037,3.62287,2760.3,2759.5,3.62382]
[1740060295335,3.62306,2760.1,2759.5,3.62382]
[1740060295531,3.62279,2760.3,2759.4,0.52740218]
[1740060295734,7.24707,2759.8,2759.4,5.32]
[1740060295957,3.62352,2759.8,2759.4,5.32]
[1740060296371,3.62327,2760.0,2759.4,5.32]
[1740060296783,4.38621,2760.4,2759.4,5.32]
[1740060296784,3.623,2760.2,2759.4,5.32]
[1740060296945,3.623,2760.2,2759.6,0.7975]
[1740060297136,3.62312,2760.1,2759.6,0.7975]
[1740060297341,3.62302,2760.2,2759.6,1.80500984]
[1740060297546,3.62302,2760.2,2759.6,0.7975]
[1740060297882,3.62306,2760.1,2759.6,0.7975]
[1740060298232,3.62242,2760.6,2759.6,0.7975]
[1740060298472,3.62279,2760.3,2759.7,6.62349]
[1740060298635,3.62299,2760.2,2759.7,4.66985984]
[1740060298839,3.62312,2760.1,2759.6,6.1175]
[1740060299161,3.62331,2760.0,2759.6,0.7975]
[1740060299479,3.6234,2759.9,2759.6,0.7975]
[1740060299678,3.623,2760.2,2759.6,0.7975]
[1740060299861,3.62312,2760.1,2759.6,0.7975]
[1740060300065,3.6232,2760.0,2759.6,0.7975]
[1740060300267,3.62384,2759.5,2759.4,5.32]
[1740060301636,5.01806037,2759.5,2758.3,0.72498893]
[1740060301837,3.62484,2758.8,2758.2,1.1024]
[1740060302036,3.62454,2759.0,2758.2,1.1024]
[1740060302233,3.986994,2759.0,2758.2,4.72794]
[1740060302461,3.62472,2758.9,2758.2,4.72794]
[1740060302668,3.62477,2758.8,2758.2,1.1024]
[1740060302878,3.6249,2758.7,2758.2,1.1024]
[1740060303062,3.6249,2758.7,2758.2,0.8264]
[1740060303354,3.6249,2758.7,2758.3,0.276]
[1740060303577,3.6249,2758.7,2758.2,0.8264]
[1740060303873,3.62515,2758.5,2758.1,5.596]
[1740060304086,3.62515,2758.5,2758.1,0.276]
[1740060304087,4.350155,2758.5,2758.1,0.276]
[1740060304284,3.62502,2758.6,2758.1,0.276]
[1740060304285,3.62472,2758.9,2758.1,0.276]
[1740060304487,3.62497,2758.7,2758.1,0.276]
[1740060304773,6.0098,2759.0,2758.1,0.276]
[1740060304975,3.62515,2758.5,2758.1,0.276]
[1740060307480,9.63433,2759.0,2758.3,3.62532]
[1740060307668,3.62469,2758.9,2758.3,0.7505]
[1740060307845,3.62515,2758.5,2758.1,0.276]
[1740060308178,3.62503,2758.6,2758.1,0.276]
[1740060308743,3.62463,2758.9,2758.1,0.276]
[1740060308948,3.62491,2758.7,2758.1,0.276]
[1740060309155,3.62515,2758.5,2758.1,0.276]
[1740060309894,4.42705,2758.5,2757.9,1.0275]
[1740060310080,3.62502,2758.6,2757.9,4.65336]
[1740060310254,3.62515,2758.5,2757.9,1.0275]
[1740060310872,3.62515,2758.5,2757.9,4.65344]
[1740060311368,3.62515,2758.5,2757.9,1.0275]
[1740060311784,3.62515,2758.5,2757.9,0.7505]
[1740060311981,3.62515,2758.5,2757.6,0.7504]
[1740060311982,4.43945,2758.5,2757.6,0.7504]
[1740060312156,4.43945,2758.5,2757.4,5.32]
[1740060312157,5.245897,2758.5,2757.4,5.597]
[1740060313007,3.62532,2758.4,2757.4,5.597]
[1740060313155,3.62605,2757.9,2757.4,0.277]
[1740060313496,7.2521,2757.9,2757.4,0.277]
[1740060313660,7.2521,2757.9,2757.4,1.574412]
[1740060313861,3.62605,2757.9,2757.4,1.574412]
[1740060314055,7.25211,2757.9,2757.4,1.574412]
[1740060314263,3.62605,2757.9,2757.4,1.574412]
[1740060314470,7.25207,2757.9,2757.4,1.574412]
[1740060314666,3.62602,2757.9,2757.3,1.0274]
[1740060314897,3.62616,2757.8,2757.3,1.0274]
[1740060315096,3.62627,2757.7,2757.3,1.0274]
[1740060315268,3.62648,2757.5,2757.3,0.7504]
[1740060315480,3.62648,2757.5,2757.2,0.277]
[1740060316004,3.62648,2757.5,2757.0,0.798]
[1740060316215,3.62675,2757.3,2756.9,5.32]
[1740060316355,4.42465,2757.2,2756.5,3.62776]
[1740060316576,3.62675,2757.3,2756.6,3.90458]
[1740060316891,3.62689,2757.2,2756.6,3.90458]
[1740060317279,3.62669,2757.4,2756.8,3.62734]
[1740060317518,3.62669,2757.4,2756.6,3.90453]
[1740060317705,3.62681,2757.3,2756.7,4.35421363]
[1740060317902,3.62688,2757.2,2756.7,0.690453]
[1740060318286,3.62722,2757.0,2756.4,12.25099004]
[1740060318520,3.62722,2757.0,2756.5,0.277]
[1740060318681,3.62713,2757.0,2756.5,0.277]
[1740060319276,3.62729,2756.9,2756.5,0.277]
[1740060319623,3.62756,2756.7,2756.5,0.277]
[1740060319779,3.62765,2756.6,2756.5,0.277]
[1740060319975,3.62778,2756.5,2756.4,2.47538004]
[1740060320429,3.62745,2756.8,2756.4,2.47538004]
[1740060320590,3.62754,2756.7,2756.4,2.47538004]
[1740060320783,3.62745,2756.8,2756.4,2.47538004]
[1740060321330,3.62778,2756.5,2756.4,2.47538004]
[1740060321822,3.62774,2756.6,2756.4,2.47538004]
[1740060321823,5.24,2756.9,2756.4,2.47538004]
[1740060321980,0.8002,2756.5,2756.4,2.47538004]
[1740060322322,3.62778,2756.5,2756.4,2.47538004]
[1740060323317,8.86778,2756.5,2756.4,2.47538004]
[1740060323501,3.62871,2755.8,2755.7,0.096]
[1740060323704,4.430089,2755.8,2755.7,0.096]
[1740060323921,0.7565,2755.9,2755.7,0.096]
[1740060324122,3.62861,2755.9,2755.7,0.096]
[1740060324423,3.62871,2755.8,2755.7,0.096]
[1740060324718,4.43651,2755.8,2755.7,0.096]
[1740060324924,5.243019,2755.8,2755.7,0.096]
[1740060325080,5.243019,2755.8,2755.7,1e-05]
[1740060325798,9.49127937,2755.8,2755.7,1e-05]
[1740060326904,3.62854,2756.0,2755.7,1e-05]
[1740060327119,3.62871,2755.8,2755.7,1e-05]
[1740060327676,7.25729,2755.9,2755.7,1e-05]
[1740060327879,3.62857,2755.9,2755.7,1e-05]
[1740060328106,4.42878,2756.1,2755.7,1e-05]
[1740060328329,1.767283,2756.1,2755.7,1e-05]
[1740060328524,3.62844,2756.0,2755.7,1e-05]
[1740060328678,3.62871,2755.8,2755.7,1e-05]
[1740060329633,3.62863,2755.9,2755.7,1e-05]
[1740060329788,3.62846,2756.0,2755.7,1e-05]